bitfinex-derivatives/quotes_ETHF0:USTF0_20250604
["timestamp","ask_amount","ask_price","bid_price","bid_amount"]
[1749046448360,2.94904718,2607.3,2606.7,1.9933]
[1749046448361,0.76678,2607.1,2607.0,0.76678]
[1749046448561,0.97603718,2607.1,2606.9,5.445]
[1749046448762,0.76679,2607.1,2607.0,0.76679]
[1749046448967,0.76679,2607.0,2606.9,0.76681]
[1749046449260,2.09449,2607.0,2606.9,0.76681]
[1749046449853,1.3277,2607.0,2606.6,3.2078]
[1749046450054,0.97702926,2606.9,2606.8,0.76685]
[1749046450858,1.74384926,2606.9,2606.8,0.76685]
[1749046451057,0.97702926,2606.9,2606.6,3.2078]
[1749046451258,0.76685,2606.9,2606.8,0.76685]
[1749046451459,1.74325327,2606.9,2606.8,0.76685]
[1749046451861,0.97640327,2606.9,2606.8,0.76685]
[1749046452259,0.7668,2607.0,2606.9,0.76682]
[1749046453464,0.7339,2607.1,2607.0,0.76679]
[1749046454662,1.50067,2607.1,2607.0,0.76679]
[1749046454861,1.71026146,2607.1,2607.0,0.76679]
[1749046455164,0.97636146,2607.1,2607.0,0.76679]
[1749046456164,0.76671,2607.3,2607.2,0.76672]
[1749046456364,1.74322304,2607.3,2607.2,0.76672]
[1749046456775,1.74322304,2607.3,2606.9,3.2078]
[1749046456776,0.97651304,2607.3,2606.9,3.2078]
[1749046457067,2.26511304,2607.2,2606.9,8.6468]
[1749046457261,1.2886,2607.2,2607.1,0.76676]
[1749046457571,0.97614492,2607.2,2607.0,1.91698]
[1749046457871,0.97615626,2607.1,2607.0,0.76679]
[1749046458665,0.97615626,2607.1,2607.0,2.73339]
[1749046458872,6.26e-06,2607.1,2607.0,7.73339]
[1749046459073,0.7666,2607.7,2607.3,1.91671]
[1749046459373,0.76658,2607.8,2607.7,0.76659]
[1749046459571,2.0383,2608.0,2607.4,3.2078]
[1749046459767,3.2078,2607.5,2607.3,5.439]
[1749046459968,0.76673,2607.3,2607.1,5.439]
[1749046460164,0.76671,2607.3,2607.2,0.76672]
[1749046460475,2.03519,2607.4,2607.3,0.76671]
[1749046460676,1.2685,2607.4,2607.1,5.439]
[1749046460971,0.76674,2607.2,2607.1,5.439]
[1749046461173,0.76673,2607.3,2607.2,0.76672]
[1749046461477,2.03523,2607.3,2607.2,0.76672]
[1749046462363,1.2685,2607.3,2607.2,0.76672]
[1749046462870,1.2685,2607.3,2607.1,5.439]
[1749046463071,1.2685,2607.3,2607.2,0.76672]
[1749046463272,0.6866,2607.4,2607.3,0.76671]
[1749046464574,1.2309,2607.8,2607.7,0.76659]
[1749046465270,1.99749,2607.8,2607.7,0.76659]
[1749046465475,1.2309,2607.8,2607.2,1.91682]
[1749046465679,0.76664,2607.6,2607.5,0.76664]
[1749046465873,1.2309,2607.8,2607.1,3.2078]
[1749046466181,0.76674,2607.3,2607.2,0.76674]
[1749046466391,1.2375,2607.5,2607.4,0.76668]
[1749046466681,2.00416,2607.5,2607.4,0.76668]
[1749046467381,1.2375,2607.5,2607.4,0.76668]
[1749046467789,2.00415,2607.5,2607.4,0.76668]
[1749046468081,1.2375,2607.5,2607.4,0.76668]
[1749046468480,3.97442,2607.7,2607.4,0.76668]
[1749046468680,0.76662,2607.7,2607.6,0.76662]
[1749046468985,3.97431,2608.0,2607.9,0.76653]
[1749046469277,3.9743,2608.0,2607.9,0.76653]
[1749046469476,3.2078,2608.0,2607.9,0.76653]
[1749046469671,1.46559,2608.1,2608.0,0.7665]
[1749046470782,1.66853841,2608.1,2608.0,0.7665]
[1749046471082,1.66853841,2608.1,2607.7,3.2078]
[1749046471280,3.00395841,2608.0,2607.9,0.76653]
[1749046471482,2.23743841,2608.0,2607.7,3.2078]
[1749046471675,1.91644,2607.8,2607.2,5.438]
[1749046471877,1.91644,2607.8,2607.5,3.2078]
[1749046471878,0.76664,2607.6,2607.5,3.2078]
[1749046472187,2.08621,2607.7,2607.6,0.76662]
[1749046472485,0.96924458,2607.7,2607.6,0.76662]
[1749046472880,0.96924458,2607.7,2607.2,1.2478]
[1749046472881,0.76664,2607.6,2607.5,0.76664]
[1749046473187,0.96924458,2607.6,2607.5,0.76664]
[1749046476085,0.96924458,2607.6,2607.5,3.97444]
[1749046476285,0.76651,2608.0,2607.9,0.76653]
[1749046476481,2.25802612,2608.0,2607.9,0.76653]
[1749046476682,3.02452612,2608.0,2607.9,0.76653]
[1749046477677,2.25802612,2608.0,2607.9,0.76653]
[1749046478378,3.02453612,2608.0,2607.6,1.91652]
[1749046478578,0.96952612,2607.9,2607.8,0.76656]
[1749046480081,0.96952612,2607.9,2607.8,14.41236]
[1749046480482,0.00576081,2608.3,2608.2,0.76644]
[1749046480674,0.97515604,2608.3,2608.2,0.76644]
[1749046484690,0.97245451,2608.3,2608.2,0.76644]
[1749046486493,0.97245451,2608.3,2608.1,3.2078]
[1749046486690,0.9666937,2608.2,2608.1,0.76647]
[1749046487690,1.7331337,2608.2,2608.1,0.76647]
[1749046487892,0.76648,2608.1,2607.8,3.2078]
[1749046488188,0.76648,2608.1,2607.7,0.76658]
[1749046488189,0.76657,2607.8,2607.7,0.76658]
[1749046488487,0.76659,2607.7,2607.6,5.428]
[1749046488795,2.26451235,2607.7,2607.6,6.19462]
[1749046489484,2.26451235,2607.7,2607.6,4.19462]
[1749046489989,2.94641235,2607.7,2607.6,4.19462]
[1749046491383,1.64871235,2607.7,2607.6,4.19462]
[1749046491585,0.96681235,2607.7,2607.6,4.19462]
[1749046492593,0.96681235,2607.7,2607.6,0.76662]
[1749046496990,1.9034,2608.0,2607.9,0.76653]
[1749046497191,2.88824134,2608.0,2607.9,0.76653]
[1749046497682,3.65474134,2608.0,2607.9,0.76653]
[1749046498294,0.98484134,2608.0,2607.9,0.76653]
[1749046500790,0.98484134,2608.0,2607.7,3.8926]
[1749046500791,0.76656,2607.8,2607.7,3.8926]
[1749046501101,0.98484134,2607.8,2607.7,6.87939]
[1749046501292,1.75140134,2607.8,2607.7,5.428]
[1749046501689,1.75140134,2607.8,2607.7,0.76659]
[1749046501902,0.76664,2607.6,2607.5,0.76663]
[1749046502088,0.98484134,2607.6,2607.5,0.76663]
[1749046502592,0.98484134,2607.6,2607.4,3.2078]
[1749046502788,1.75149134,2607.5,2607.4,3.2078]
[1749046502991,1.75149134,2607.5,2607.4,3.97448]
[1749046503191,0.98484134,2607.5,2607.4,3.97448]
[1749046503493,1.8845,2607.6,2607.5,0.76665]
[1749046503791,0.76665,2607.5,2607.4,3.2078]
[1749046503993,0.76674,2607.2,2607.1,3.2078]
[1749046504192,0.98491809,2607.2,2607.1,9.40256]
[1749046504692,1.75165809,2607.2,2607.1,9.40256]
[1749046504893,0.98491809,2607.2,2607.1,9.40256]
[1749046505791,2.88901809,2607.2,2607.1,9.40256]
[1749046506300,3.65575809,2607.2,2607.1,8.6358]
[1749046506496,0.76682,2606.9,2606.8,5.428]
[1749046506800,0.98491809,2606.9,2606.8,5.428]
[1749046507004,0.98417206,2606.9,2606.8,6.19485]
[1749046507891,1.75099206,2606.9,2606.8,5.428]
[1749046508195,2.96751206,2606.9,2606.8,0.76685]
[1749046508699,2.20067206,2606.9,2606.8,0.76685]
[1749046508892,0.98417206,2606.9,2606.8,3.97465]
[1749046510601,1.75099206,2606.9,2606.8,3.97465]
[1749046510804,2.90126206,2606.9,2606.6,5.428]
[1749046511006,0.76688,2606.7,2606.6,0.76691]
[1749046511194,1.75105206,2606.7,2606.6,0.76691]
[1749046511595,1.74858186,2606.7,2606.6,0.76691]
[1749046511892,0.98170186,2606.7,2606.6,0.76691]
[1749046512394,1.74858186,2606.7,2606.6,0.76691]
[1749046512802,0.98170186,2606.7,2606.6,0.76691]
[1749046513194,1.74858186,2606.7,2606.6,0.76691]
[1749046513395,0.98170186,2606.7,2606.6,0.76691]
[1749046513897,0.98170186,2606.7,2606.5,3.2078]
[1749046514097,1.74861186,2606.6,2606.5,3.97473]
[1749046514405,1.74861186,2606.6,2606.5,3.2078]
[1749046514597,3.06671186,2606.6,2606.5,3.2078]
[1749046514792,3.06671186,2606.6,2606.5,3.97474]
[1749046514793,3.0659053,2606.6,2606.5,3.97474]
[1749046514997,3.0659053,2606.6,2606.5,3.2078]
[1749046515498,3.0659053,2606.6,2606.5,3.97474]
[1749046515694,0.98028175,2606.6,2606.5,3.97474]
[1749046516302,1.74719175,2606.6,2606.5,3.2078]
[1749046516801,1.74719175,2606.6,2606.5,3.97474]
[1749046517000,0.98028175,2606.6,2606.5,3.97474]
[1749046517507,0.98028175,2606.6,2606.5,5.91634]
[1749046518806,0.98028175,2606.6,2606.5,4.67644]
[1749046519497,0.76686,2606.8,2606.7,0.76686]
[1749046519892,1.74703203,2606.8,2606.7,0.76686]
[1749046521204,0.76691,2606.6,2606.5,3.2078]
[1749046521500,0.76691,2606.6,2606.5,9.38974]
[1749046521811,0.98017203,2606.6,2606.5,9.38974]
[1749046522202,1.74708203,2606.6,2606.5,9.38974]
[1749046522400,1.74708203,2606.6,2606.5,3.2078]
[1749046522999,3.77208203,2606.6,2606.5,3.2078]
[1749046523203,0.76706,2606.1,2606.0,1.52408]
[1749046523405,0.76715,2605.9,2605.7,44.08]
[1749046523603,2.0176,2606.0,2605.9,0.76712]
[1749046523804,2.99751202,2606.0,2605.9,0.76712]
[1749046524012,0.19715074,2607.7,2606.1,3.2078]
[1749046524197,5.31312332,2608.7,2608.0,3.2078]
[1749046524503,1.2653,2610.2,2609.1,0.76618]
[1749046524801,0.19162967,2609.8,2609.7,0.766]
[1749046525203,5.06038809,2610.2,2609.5,44.01352144]
[1749046525204,0.005749,2610.0,2609.5,44.01352144]
[1749046525404,0.771659,2610.0,2609.9,3.2078]
[1749046525701,4.56674709,2610.0,2609.9,3.74873842]
[1749046526297,8.213549,2610.0,2609.6,0.49455342]
[1749046526500,1.2134,2609.9,2609.6,0.49455342]
[1749046526706,0.766,2609.7,2609.6,0.49455342]
[1749046527504,5.0,2609.7,2609.6,0.49455342]
[1749046527903,5.766,2609.7,2609.6,0.49455342]
[1749046528505,0.76603,2609.6,2609.5,0.00572144]
[1749046528810,1.97943,2609.6,2609.5,0.00572144]
[1749046529005,6.97943,2609.6,2609.5,0.00572144]
[1749046529714,6.2134,2609.6,2609.5,0.00572144]
[1749046530513,1.2134,2609.6,2609.5,0.77178144]
[1749046530810,0.7146,2609.9,2609.5,5.41772144]
[1749046531019,2.76446,2609.9,2609.5,5.41772144]
[1749046531213,1.9985,2609.9,2609.6,5.412]
[1749046531410,1.9985,2609.9,2609.7,0.766]
[1749046531999,2.76446,2609.9,2609.7,0.766]
[1749046532601,2.76447,2609.9,2609.6,5.412]
[1749046532913,1.9985,2609.9,2609.6,5.412]
[1749046533120,2.76446,2609.9,2609.6,6.17803]
[1749046533414,1.2839,2609.9,2609.7,3.2078]
[1749046533711,2.04988,2609.9,2609.7,3.9738]
[1749046533904,0.400149,2610.0,2609.9,0.76596]
[1749046534306,0.005749,2610.0,2609.8,0.76598]
[1749046534506,0.76596,2609.9,2609.7,3.2078]
[1749046534705,0.771689,2610.0,2609.8,5.411]
[1749046534910,0.771689,2610.0,2609.9,0.76596]
[1749046534911,0.005749,2610.0,2609.9,0.76596]
[1749046535815,0.76599,2609.8,2609.7,3.2078]
[1749046536613,0.76599,2609.8,2609.7,3.74230023]
[1749046536815,0.76599,2609.8,2609.7,3.2078]
[1749046537015,0.005749,2610.0,2609.8,0.76596]
[1749046537317,0.76597,2609.9,2609.8,0.76597]
[1749046537520,0.005749,2610.0,2609.7,3.2078]
[1749046537720,0.771699,2610.0,2609.9,0.76596]
[1749046538016,0.005749,2610.0,2609.9,0.76596]
[1749046538407,0.005749,2610.0,2609.9,6.17596]
[1749046540207,0.005749,2610.0,2609.9,6.5199315]
[1749046540407,0.005749,2610.0,2609.9,6.17596]
[1749046540915,0.005749,2610.0,2609.9,11.17596]
[1749046541217,0.005749,2610.0,2609.9,5.96192413]
[1749046541417,0.005749,2610.0,2609.9,25.37392413]
[1749046541915,0.005749,2610.0,2609.9,6.37092413]
[1749046542116,0.005749,2610.0,2609.9,11.37092413]
[1749046542616,9e-06,2610.0,2609.9,11.37092413]
[1749046543219,9e-06,2610.0,2609.9,11.7107483]
[1749046543420,9e-06,2610.0,2609.9,11.37092413]
[1749046543926,1.3277,2611.2,2610.9,0.76566]
[1749046544121,0.76562,2611.1,2611.0,5.397]
[1749046544318,0.76562,2611.1,2611.0,8.6048]
[1749046545018,1.3277,2611.2,2611.0,3.2078]
[1749046545218,0.76561,2611.1,2611.0,8.6038]
[1749046546032,0.76561,2611.1,2611.0,5.396]
[1749046546421,0.76561,2611.1,2610.8,0.005749]
[1749046546422,0.76564,2611.0,2610.9,3.2078]
[1749046546930,0.76564,2611.0,2610.9,8.6038]
[1749046547324,0.76563,2611.1,2610.9,9.36947]
[1749046547526,0.76563,2611.1,2610.9,8.6038]
[1749046547729,0.76563,2611.1,2610.9,9.36945]
[1749046547924,0.76564,2611.0,2610.9,3.2078]
[1749046548222,0.76567,2610.9,2610.8,0.005749]
[1749046548422,2.04397,2610.9,2610.8,0.005749]
[1749046551436,0.00986597,2611.1,2611.0,0.76564]
[1749046551735,0.00986597,2611.1,2611.0,9.36944]
[1749046552735,0.77547597,2611.1,2611.0,9.36944]
[1749046553235,0.77547597,2611.1,2611.0,3.2078]
[1749046553423,0.77547597,2611.1,2611.0,9.36944]
[1749046553625,0.77547597,2611.1,2611.0,3.2078]
[1749046554122,0.77547597,2611.1,2611.0,3.97344]
[1749046554327,0.00986597,2611.1,2611.0,3.97344]
[1749046554836,0.77547597,2611.1,2611.0,3.2078]
[1749046556535,0.76567,2610.9,2610.8,0.005749]
[1749046559131,0.76567,2610.9,2610.8,3.979249]
[1749046559330,0.76566,2611.0,2610.9,0.76564]
[1749046559526,0.00986597,2611.1,2610.8,9.374229]
[1749046559527,0.76567,2610.9,2610.8,9.374229]
[1749046559732,0.76567,2610.9,2610.8,9.374249]
[1749046560340,0.76566,2611.0,2610.9,0.76564]
[1749046560536,0.76567,2610.9,2610.8,9.374239]
[1749046560836,0.76567,2610.9,2610.8,3.213549]
[1749046561044,0.76567,2610.9,2610.8,9.374249]
[1749046561428,0.76566,2611.0,2610.9,0.76564]
[1749046561938,1.25696597,2611.1,2610.8,8.608549]
[1749046562137,0.76565,2611.0,2610.9,0.76564]
[1749046562435,0.00986597,2611.1,2611.0,0.76564]
[1749046562643,0.77547597,2611.1,2611.0,0.76564]
[1749046562942,0.00986597,2611.1,2611.0,0.76564]
[1749046563442,0.00986597,2611.1,2611.0,6.16064]
[1749046563645,0.00986597,2611.1,2611.0,7.48604]
[1749046564343,0.00986597,2611.1,2611.0,6.16064]
[1749046565937,0.77547597,2611.1,2611.0,0.76564]
[1749046566141,0.00986597,2611.1,2611.0,6.16064]
[1749046567336,0.76567,2610.9,2610.8,0.005749]
[1749046567536,0.76584,2610.3,2610.2,6.16087]
[1749046567733,0.76584,2610.3,2610.2,5.395]
[1749046567934,0.76573,2610.7,2610.2,5.395]
[1749046568130,0.76573,2610.7,2610.3,0.76581]
[1749046568131,1.3053,2610.6,2610.3,0.76581]
[1749046568333,1.3053,2610.6,2610.5,0.76578]
[1749046568541,0.76573,2610.7,2610.6,0.76573]
[1749046568742,0.76573,2610.7,2610.6,6.16073]
[1749046569636,1.4324,2611.0,2610.9,0.76567]
[1749046569831,0.76572,2610.8,2610.7,0.7657]
[1749046570139,3.34651,2611.0,2610.6,8.6028]
[1749046570140,0.76573,2610.7,2610.6,8.6028]
[1749046570444,0.76573,2610.7,2610.6,6.16076]
[1749046570743,0.76571,2610.9,2610.8,0.76567]
[1749046571844,0.76571,2610.9,2610.6,7.30938]
[1749046571845,0.76573,2610.8,2610.7,0.7657]
[1749046572041,0.76568,2610.9,2610.8,0.76567]
[1749046572245,2.6774,2611.0,2610.9,0.76567]
[1749046572438,0.77547597,2611.1,2611.0,0.76564]
[1749046572742,0.00986597,2611.1,2611.0,6.16064]
[1749046573248,0.77547597,2611.1,2611.0,5.395]
[1749046573442,0.00986597,2611.1,2611.0,6.16064]
[1749046573937,0.00986597,2611.1,2611.0,7.48774]
[1749046574144,0.00986597,2611.1,2611.0,6.16064]
[1749046574738,0.00986597,2611.1,2611.0,7.48774]
[1749046574935,1.91357,2611.8,2611.0,7.48774]
[1749046574936,1.91291,2612.7,2611.3,1.91386]
[1749046575145,0.76528,2612.3,2612.2,3.2078]
[1749046575345,0.76526,2612.3,2612.2,5.384]
[1749046575539,0.7652,2612.5,2612.4,0.76522]
[1749046575737,3.00402959,2613.4,2612.9,0.76505]
[1749046575941,0.005749,2613.4,2613.3,0.76496]
[1749046576152,0.005749,2613.4,2613.1,3.2078]
[1749046576352,0.005749,2613.4,2613.3,0.76496]
[1749046576646,0.005749,2613.4,2613.2,6.6908]
[1749046576851,0.005749,2613.4,2613.3,0.76496]
[1749046577145,0.005749,2613.4,2613.1,3.2078]
[1749046577446,0.76499,2613.2,2613.1,3.2078]
[1749046577647,0.07653451,2613.2,2613.1,8.5918]
[1749046577949,0.07653451,2613.2,2613.1,9.35682]
[1749046578149,0.07653451,2613.2,2613.1,3.2078]
[1749046578453,0.07653451,2613.2,2613.1,9.35482]
[1749046578645,0.07653451,2613.2,2613.1,3.97282]
[1749046579454,0.07653451,2613.2,2613.1,9.35482]
[1749046581149,0.005749,2613.4,2613.1,8.5888]
[1749046581351,0.005749,2613.4,2613.3,0.76496]
[1749046581539,0.005749,2613.4,2613.1,8.5888]
[1749046581743,0.005749,2613.4,2613.1,9.35381]
[1749046581944,0.770689,2613.4,2613.2,0.76497]
[1749046582149,0.005749,2613.4,2613.3,0.76496]
[1749046584163,0.005749,2613.4,2613.1,3.2078]
[1749046584362,0.005749,2613.4,2613.2,6.14497]
[1749046584665,0.76499,2613.2,2613.1,3.2078]
[1749046584967,10.125949,2613.4,2612.5,3.2078]
[1749046585157,0.005749,2613.4,2612.4,3.2078]
[1749046585460,1.918129,2613.4,2612.7,3.2078]
[1749046585665,0.76511,2612.9,2612.7,3.2078]
[1749046585853,1.3102,2613.3,2612.7,3.2078]
[1749046586054,0.76506,2613.0,2612.7,3.21352144]
[1749046586262,0.76505,2613.1,2612.7,3.21352144]
[1749046586462,0.76505,2613.1,2613.0,3.2078]
[1749046586663,0.76502,2613.1,2613.0,3.2078]
[1749046587061,0.76502,2613.1,2613.0,3.97285]
[1749046587263,1.3102,2613.3,2613.2,0.76499]
[1749046587663,0.76501,2613.2,2613.1,0.765]
[1749046587865,2.07519,2613.3,2613.2,0.76499]
[1749046588265,1.3102,2613.3,2613.2,0.76499]
[1749046588656,0.76502,2613.1,2613.0,3.2078]
[1749046589271,0.76507,2613.0,2612.7,0.00572144]
[1749046589565,2.03766,2613.0,2612.9,0.76508]
[1749046590073,0.005749,2613.4,2613.3,0.76496]
[1749046590267,0.005749,2613.4,2613.3,3.97276]
[1749046590570,0.770689,2613.4,2613.3,3.2078]
[1749046590772,0.770689,2613.4,2613.3,3.97276]
[1749046591163,0.005749,2613.4,2613.0,3.2078]
[1749046591468,1.3142,2613.3,2613.2,0.76499]
[1749046591772,0.770699,2613.4,2613.3,0.76496]
[1749046591773,0.005749,2613.4,2613.3,0.76496]
[1749046591975,0.770689,2613.4,2613.3,0.76496]
[1749046592178,1.319949,2613.4,2613.0,3.2078]
[1749046592477,2.084899,2613.4,2613.3,0.76496]
[1749046592670,0.76499,2613.3,2613.2,0.76498]
[1749046592871,2.07919,2613.3,2613.2,0.76498]
[1749046593572,1.3142,2613.3,2613.2,0.76498]
[1749046593768,0.005749,2613.4,2613.3,0.76496]
[1749046594072,0.005749,2613.4,2613.3,3.97276]
[1749046595372,0.005749,2613.4,2613.3,9.35276]
[1749046596272,0.005749,2613.4,2613.3,3.97276]
[1749046596469,0.005749,2613.4,2613.3,9.35176]
[1749046596873,0.770689,2613.4,2613.3,0.76496]
[1749046597072,0.770689,2613.4,2613.2,0.76496]
[1749046597073,0.76499,2613.3,2613.2,0.76496]
[1749046597377,2.06759,2613.3,2613.2,6.14396]
[1749046597580,1.3026,2613.3,2613.2,6.14396]
[1749046597773,2.06756,2613.3,2613.2,6.14396]
[1749046597965,0.76502,2613.1,2613.0,9.35185]
[1749046598377,0.76501,2613.2,2613.1,0.76499]
[1749046598573,0.76502,2613.1,2613.0,8.5868]
[1749046598776,0.76502,2613.1,2613.0,9.35185]
[1749046598978,0.76502,2613.1,2613.0,3.2078]
[1749046599474,0.76502,2613.1,2613.0,3.97285]
[1749046599680,0.76502,2613.1,2613.0,3.2078]
[1749046600184,2.06762,2613.2,2613.1,0.76502]
[1749046600673,0.005749,2613.4,2613.1,5.379]
[1749046601069,0.005749,2613.4,2613.3,0.76496]
[1749046601272,0.005749,2613.4,2613.3,3.97276]
[1749046610677,0.770689,2613.4,2613.3,3.2078]
[1749046610881,0.770689,2613.4,2613.3,3.97276]
[1749046611284,0.005749,2613.4,2613.3,3.97276]
[1749046614277,0.770689,2613.4,2613.3,3.2078]
[1749046614487,0.005749,2613.4,2613.3,3.97276]
[1749046615890,0.770689,2613.4,2613.3,3.2078]
[1749046616186,0.76502,2613.1,2613.0,3.97284]
[1749046616389,0.76502,2613.2,2613.1,0.76499]
[1749046616684,0.76502,2613.2,2613.0,3.2078]
[1749046616685,0.76502,2613.1,2613.0,3.2078]
[1749046616890,2.83372,2613.1,2613.0,3.97285]
[1749046617080,0.7715,2613.3,2613.0,3.97285]
[1749046617283,0.7715,2613.3,2613.2,0.76499]
[1749046617785,1.53646,2613.3,2613.2,0.76499]
[1749046617990,0.76502,2613.1,2613.0,3.97284]
[1749046619592,0.76501,2613.2,2613.1,0.76499]
[1749046619794,2.01441,2613.2,2613.1,0.76499]
[1749046620393,0.76502,2613.1,2613.0,3.97284]
[1749046620688,0.76502,2613.1,2612.7,7.28656144]
[1749046620689,0.76511,2612.8,2612.7,0.00572144]
[1749046621193,0.76511,2612.8,2612.7,0.77086144]
[1749046621392,0.005749,2613.4,2613.2,0.76497]
[1749046621687,0.005749,2613.4,2612.9,1.91269]
[1749046621688,0.770699,2613.4,2613.3,3.2078]
[1749046622086,0.76501,2613.3,2613.2,3.97278]
[1749046622294,2.74661,2613.3,2613.2,3.2078]
[1749046622891,2.74661,2613.3,2612.7,0.00572144]
[1749046622892,0.76511,2612.8,2612.7,0.00572144]
[1749046623393,0.76523,2612.4,2612.3,3.2078]
[1749046624086,0.76522,2612.5,2612.3,3.2078]
[1749046624293,0.76522,2612.5,2612.4,0.76521]
[1749046624891,0.76523,2612.4,2612.3,3.97304]
[1749046625185,0.76523,2612.4,2612.3,3.2078]
[1749046625585,0.76523,2612.4,2612.3,3.97306]
[1749046625896,0.76523,2612.4,2612.3,3.2078]
[1749046626096,0.76518,2612.6,2612.5,0.76518]
[1749046626290,0.76523,2612.4,2612.3,3.97306]
[1749046626601,0.76523,2612.4,2612.3,3.2078]
[1749046627395,0.76523,2612.4,2612.3,3.97304]
[1749046627787,0.76523,2612.4,2612.3,3.97306]
[1749046627992,0.76523,2612.4,2612.3,3.2078]
[1749046628500,0.76523,2612.4,2612.3,3.97306]
[1749046628798,0.76523,2612.4,2612.3,3.2078]
[1749046630095,0.7652,2612.5,2612.3,3.97304]
[1749046630289,1.3111,2612.6,2612.3,3.2078]
[1749046630495,1.3111,2612.6,2612.5,0.7652]
[1749046631094,0.6964,2612.9,2612.3,5.12089]
[1749046631297,1.9513,2612.9,2612.8,3.97291]
[1749046631494,0.7147,2613.1,2613.0,0.76505]
[1749046631797,1.47974,2613.1,2613.0,0.76505]
[1749046632200,0.76507,2613.0,2612.9,0.76506]
[1749046632391,1.47975,2613.1,2613.0,0.76505]
[1749046634102,0.005749,2613.4,2613.3,0.76496]
[1749046634293,0.005749,2613.4,2613.3,3.97276]
[1749046634998,0.770689,2613.4,2613.3,3.2078]
[1749046636395,5.770689,2613.4,2613.3,3.2078]
[1749046637100,1.91257,2613.1,2612.7,3.2078]
[1749046637403,0.7651,2612.9,2612.8,0.7651]
[1749046637698,0.76511,2612.9,2612.8,0.7651]
[1749046637897,2.77837,2613.0,2612.9,0.76508]
[1749046638094,0.7651,2612.9,2612.8,0.76509]
[1749046638401,0.76511,2612.8,2612.7,3.97293]
[1749046638704,2.0075,2612.9,2612.8,0.76511]
[1749046638906,1.2424,2612.9,2612.8,0.76511]
[1749046639094,0.7709,2613.0,2612.9,0.76508]
[1749046639496,0.7709,2613.0,2612.7,3.2078]
[1749046639699,0.76509,2612.9,2612.7,3.2078]
[1749046639902,0.7709,2613.0,2612.9,0.76508]
[1749046640404,0.7709,2613.0,2612.8,0.7651]
[1749046640606,0.7709,2613.0,2612.9,0.76508]
[1749046641006,0.7252,2613.2,2613.1,0.76502]
[1749046641399,0.747849,2613.4,2613.3,0.76496]
[1749046642002,0.005749,2613.4,2613.3,0.76496]
[1749046642197,0.005749,2613.4,2613.3,3.97276]
[1749046643403,0.005749,2613.4,2613.3,9.32876]
[1749046643605,2.756e-05,2613.4,2613.3,14.32876]
[1749046644105,2.756e-05,2613.4,2613.3,9.32876]
[1749046644311,2.756e-05,2613.4,2613.3,10.64276]
[1749046644506,2.756e-05,2613.4,2613.3,10.9660168]
[1749046644698,2.756e-05,2613.4,2613.3,10.64276]
[1749046645503,2.756e-05,2613.4,2613.3,10.96601692]
[1749046645702,2.756e-05,2613.4,2613.3,10.64276]
[1749046646410,2.756e-05,2613.4,2613.3,5.28676]
[1749046646709,2.756e-05,2613.4,2613.3,3.97276]
[1749046647911,0.76496756,2613.4,2613.3,3.2078]
[1749046652107,0.76499,2613.2,2613.1,0.00572144]
[1749046652710,0.76499,2613.2,2613.1,3.21352144]
[1749046653617,1.48139,2613.2,2613.1,3.21352144]
[1749046654303,1.48139,2613.2,2613.1,0.00572144]
[1749046654507,1.48139,2613.2,2613.1,3.21352144]
[1749046654804,0.76499,2613.2,2613.1,3.97853144]
[1749046655005,0.76498,2613.3,2613.2,0.76499]
[1749046655908,2.756e-05,2613.4,2613.1,3.21352144]
[1749046656114,0.76499,2613.2,2613.1,3.97851144]
[1749046656316,0.76498,2613.3,2613.2,0.76496]
[1749046656511,0.76499,2613.2,2613.1,0.00572144]
[1749046656713,2.05179,2613.2,2613.1,0.00572144]
[1749046656910,7.05179,2613.2,2613.1,0.00572144]
[1749046657404,2.05179,2613.2,2613.1,0.00572144]
[1749046657607,2.05179,2613.2,2612.7,3.2078]
[1749046657608,0.76511,2612.8,2612.7,3.97291]
[1749046658217,0.76511,2612.8,2612.7,3.2078]
[1749046658615,1.91288,2612.7,2612.2,0.76526]
[1749046658815,0.76529,2612.2,2612.1,3.2078]
[1749046660712,2.01999,2612.2,2612.1,3.2078]
[1749046661417,0.7654,2611.8,2611.7,3.2078]
[1749046661819,0.005749,2612.0,2611.7,3.2078]
[1749046662006,0.771109,2612.0,2611.9,0.76537]
[1749046662210,0.005749,2612.0,2611.9,0.76537]
[1749046662616,0.771099,2612.0,2611.9,0.76537]
[1749046663016,0.005749,2612.0,2611.9,0.76537]
[1749046665109,0.7654,2611.9,2611.8,0.76538]
[1749046665311,0.005749,2612.0,2611.9,0.76537]
[1749046665719,0.7654,2611.8,2611.7,3.2078]
[1749046666720,0.7654,2611.8,2611.7,3.97323]
[1749046667714,0.84046313,2611.9,2611.7,3.2078]
[1749046667920,0.84047498,2611.8,2611.7,3.97323]
[1749046668223,0.005749,2612.0,2611.9,0.76537]
[1749046668622,0.84616532,2612.0,2611.9,0.76537]
[1749046668820,0.7654,2611.9,2611.8,0.76539]
[1749046669123,1.60580632,2611.9,2611.8,0.7654]
[1749046669422,0.84041632,2611.9,2611.8,0.7654]
[1749046669622,1.60578632,2611.9,2611.8,0.7654]
[1749046669825,0.84041632,2611.9,2611.8,0.7654]
[1749046670917,0.84041632,2611.9,2611.7,3.97322]
[1749046671116,1.60507006,2611.8,2611.7,3.97322]
[1749046671322,0.005749,2612.0,2611.8,0.76537]
[1749046671624,1.60484085,2611.9,2611.8,0.76537]
[1749046672321,0.771109,2612.0,2611.9,0.76537]
[1749046672526,1.6105859,2612.0,2611.9,0.76537]
[1749046673326,0.8452259,2612.0,2611.9,0.76537]
[1749046673826,0.005749,2612.0,2611.9,0.76537]
[1749046674724,0.84577698,2612.0,2611.9,0.76537]